[Event "BM10, BM12, BM14, BM16 ir BM18 èempionat"]
[Site "Vilnius"]
[Date "2021.06.06"]
[Round "8.23"]
[White "Pidluznij, Matvej"]
[Black "Mikalajunas, Gytis"]
[Result "1-0"]
[WhiteElo "1501"]
[BlackElo "1042"]
[PlyCount "103"]
[EventDate "2021.??.??"]
[TimeControl "90+30"]
[WhiteClock "0:52:31"]
[BlackClock "1:17:24"]

1. e4 {[%emt 0:00:01]} e5 {[%emt 0:00:08]} 2. Nf3 {[%emt 0:00:04]} Nc6 {[%emt
0:00:20]} 3. Bc4 {[%emt 0:00:05]} Bc5 {[%emt 0:00:11]} 4. d3 {[%emt 0:00:07]}
Nf6 {[%emt 0:00:11]} 5. Nc3 {[%emt 0:00:09]} d6 {[%emt 0:00:26]} 6. Bg5 {[%emt
0:00:08]} h6 {[%emt 0:00:08]} 7. Be3 {[%emt 0:00:07]} Nd4 {[%emt 0:00:32]} 8.
Bxd4 {[%emt 0:03:24]} Bxd4 {[%emt 0:00:54]} 9. Nxd4 {[%emt 0:00:19]} exd4 {
[%emt 0:00:49]} 10. Ne2 {[%emt 0:00:27]} c5 {[%emt 0:00:25]} 11. Nf4 {[%emt 0:
04:24]} Qa5+ {[%emt 0:02:10]} 12. Qd2 {[%emt 0:02:44]} Qxd2+ {[%emt 0:00:15]}
13. Kxd2 {[%emt 0:00:08]} b6 {[%emt 0:00:58]} 14. Bb5+ {[%emt 0:00:55]} Ke7 {
[%emt 0:00:38]} 15. Rae1 {[%emt 0:00:25]} Ng4 {[%emt 0:00:32]} 16. Nd5+ {[%emt
0:01:45]} Kd8 {[%emt 0:00:51]} 17. f3 {[%emt 0:00:41]} Ne5 {[%emt 0:01:02]} 18.
f4 {[%emt 0:00:24]} Ng6 {[%emt 0:00:16]} 19. h3 {[%emt 0:15:34]} Bb7 {[%emt 0:
00:29]} 20. Bc4 {[%emt 0:02:31]} Rc8 {[%emt 0:00:41]} 21. g3 {[%emt 0:00:32]}
Ne7 {[%emt 0:05:39]} 22. Nxe7 {[%emt 0:00:27]} Kxe7 {[%emt 0:00:16]} 23. Re2 {
[%emt 0:00:19]} f6 {[%emt 0:00:36]} 24. Rhe1 {[%emt 0:00:35]} a6 {[%emt 0:01:
00]} 25. a3 {[%emt 0:03:17]} Rhe8 {[%emt 0:01:11]} 26. e5 {[%emt 0:01:49]} d5 {
[%emt 0:00:17]} 27. exf6+ {[%emt 0:00:20]} Kf7 {[%emt 0:00:46]} 28. Re7+ {
[%emt 0:01:48]} Rxe7 {[%emt 0:00:17]} 29. Rxe7+ {[%emt 0:00:04]} Kxf6 {[%emt 0:
00:11]} 30. Rxb7 {[%emt 0:00:04]} dxc4 {[%emt 0:00:09]} 31. Rxb6+ {[%emt 0:01:
08]} Kf5 {[%emt 0:00:59]} 32. Rxa6 {[%emt 0:00:16]} cxd3 {[%emt 0:00:12]} 33.
cxd3 {[%emt 0:00:10]} c4 {[%emt 0:01:03]} 34. Ra5+ {[%emt 0:00:20]} Kf6 {[%emt
0:00:19]} 35. Ra4 {[%emt 0:00:26]} cxd3 {[%emt 0:00:25]} 36. Rxd4 {[%emt 0:00:
24]} Rc2+ {[%emt 0:00:22]} 37. Kxd3 {[%emt 0:02:25]} Rxb2 {[%emt 0:00:12]} 38.
Ke3 {[%emt 0:02:29]} g5 {[%emt 0:01:18]} 39. fxg5+ {[%emt 0:00:36]} Kxg5 {
[%emt 0:00:19]} 40. h4+ {[%emt 0:00:58]} Kh5 {[%emt 0:00:54]} 41. Rb4 {[%emt 0:
01:10]} Rg2 {[%emt 0:01:34]} 42. Kf3 {[%emt 0:00:23]} Ra2 {[%emt 0:01:00]} 43.
Ra4 {[%emt 0:00:21]} Kg6 {[%emt 0:00:20]} 44. Ra8 {[%emt 0:00:25]} h5 {[%emt 0:
00:29]} 45. a4 {[%emt 0:00:11]} Kf5 {[%emt 0:01:20]} 46. a5 {[%emt 0:03:53]}
Ra4 {[%emt 0:02:01]} 47. a6 {[%emt 0:00:27]} Kg6 {[%emt 0:00:24]} 48. a7 {
[%emt 0:00:22]} Kg7 {[%emt 0:00:14]} 49. Ke3 {[%emt 0:03:29]} Kh7 {[%emt 0:01:
59]} 50. Kd3 {[%emt 0:01:37]} Kg7 {[%emt 0:00:13]} 51. Kc3 {[%emt 0:00:11]} Kh7
{[%emt 0:02:02]} 52. Kb3 {[%emt 0:00:50]} 1-0